bitfinex-derivatives/quotes_BTCF0:USTF0_20220103
["timestamp","ask_amount","ask_price","bid_price","bid_amount"]
[1641246396940,0.00850329,46062.0,46059.0,0.001]
[1641246397142,0.00850329,46060.0,46059.0,0.01225906]
[1641246397341,0.00850329,46061.0,46059.0,0.001]
[1641246397540,0.00850329,46060.0,46059.0,0.01225906]
[1641246397741,0.00850329,46060.0,46059.0,0.01325906]
[1641246398141,0.00850329,46062.0,46059.0,0.001]
[1641246398345,0.16450329,46060.0,46059.0,0.17625906]
[1641246398543,0.156,46060.0,46059.0,0.165]
[1641246398742,0.156,46060.0,46059.0,0.17725906]
[1641246399042,0.16450329,46060.0,46059.0,0.17725906]
[1641246399543,0.16450329,46060.0,46059.0,0.01325906]
[1641246399742,0.00850329,46060.0,46059.0,0.01325906]
[1641246400143,0.00850329,46062.0,46059.0,0.01325906]
[1641246400342,0.17050329,46060.0,46059.0,0.17025906]
[1641246400644,0.162,46060.0,46059.0,0.159]
[1641246400848,0.17050329,46060.0,46059.0,0.159]
[1641246401944,0.17050329,46060.0,46059.0,0.18070463]
[1641246402443,0.17450329,46060.0,46059.0,0.50934963]
[1641246402844,0.17450329,46060.0,46059.0,0.164]
[1641246403744,0.00850329,46060.0,46059.0,0.001]
[1641246404244,0.162,46060.0,46059.0,0.159]
[1641246404443,0.17050329,46060.0,46059.0,0.159]
[1641246405646,0.00850329,46060.0,46059.0,0.001]
[1641246406247,0.13350329,46060.0,46059.0,0.168]
[1641246407548,0.00850329,46060.0,46059.0,0.001]
[1641246407950,0.00850329,46062.0,46059.0,0.001]
[1641246408148,0.00850329,46060.0,46056.0,0.02170596]
[1641246408350,0.072,46060.0,46059.0,0.169]
[1641246409651,0.85765802,46063.0,46059.0,0.001]
[1641246409850,0.85765802,46063.0,46062.0,0.001]
[1641246410252,1.00565802,46063.0,46062.0,0.001]
[1641246411551,0.85765802,46063.0,46062.0,0.001]
[1641246411952,1.22522574,46065.0,46062.0,0.001]
[1641246412151,1.22522574,46065.0,46061.0,0.14033567]
[1641246412152,1.22522574,46065.0,46064.0,0.001]
[1641246412853,1.22522574,46065.0,46064.0,0.43517785]
[1641246413855,0.85778875,46068.0,46064.0,0.001]
[1641246414054,0.85778875,46068.0,46061.0,0.14033567]
[1641246414258,0.167,46065.0,46064.0,0.163]
[1641246414454,0.167,46065.0,46064.0,0.164]
[1641246415663,0.85778875,46066.0,46064.0,0.0132583]
[1641246415857,1.03778875,46066.0,46064.0,0.0122583]
[1641246416063,1.03778875,46066.0,46061.0,0.14033567]
[1641246416064,0.85778875,46065.0,46061.0,0.14033567]
[1641246416458,0.85778875,46065.0,46062.0,0.0122595]
[1641246416657,0.85778875,46065.0,46061.0,0.14033567]
[1641246417257,0.35,46066.0,46061.0,0.14033567]
[1641246417558,1.22522574,46063.0,46061.0,0.14033567]
[1641246417757,1.22522574,46063.0,46056.0,0.16204183]
[1641246418057,1.22522574,46063.0,46057.0,0.01225961]
[1641246418257,1.39622574,46063.0,46057.0,0.01225961]
[1641246419459,0.85794497,46061.0,46057.0,0.01225961]
[1641246419660,0.85794497,46061.0,46060.0,0.001]
[1641246420060,0.85794497,46061.0,46060.0,0.01325961]
[1641246420258,0.85794497,46061.0,46060.0,0.08191961]
[1641246420459,1.02194497,46061.0,46060.0,0.67613077]
[1641246420659,1.02194497,46061.0,46060.0,1.00257777]
[1641246421269,0.164,46061.0,46060.0,1.00257777]
[1641246421660,0.164,46061.0,46060.0,0.24191961]
[1641246422261,0.164,46061.0,46060.0,0.40991961]
[1641246422462,0.85794497,46065.0,46060.0,0.24991961]
[1641246422661,0.85794497,46065.0,46060.0,0.57245732]
[1641246423062,0.85794497,46065.0,46061.0,0.33660361]
[1641246423461,0.85794497,46065.0,46062.0,0.01225961]
[1641246423661,0.00841124,46064.0,46063.0,0.14033567]
[1641246424061,0.00841124,46064.0,46063.0,0.15259528]
[1641246424261,0.17441124,46064.0,46063.0,0.31559528]
[1641246425764,0.00841124,46064.0,46063.0,0.15259528]
[1641246426271,0.00841124,46064.0,46063.0,0.17429815]
[1641246426467,0.01041124,46064.0,46063.0,0.34029815]
[1641246427565,0.86835621,46064.0,46063.0,0.34029815]
[1641246428464,0.86835621,46064.0,46063.0,0.34129815]
[1641246428465,0.86635621,46064.0,46063.0,0.34129815]
[1641246429966,0.86635621,46064.0,46063.0,0.17429815]
[1641246430365,0.86635621,46064.0,46063.0,0.34729815]
[1641246432370,1.02235621,46064.0,46063.0,0.34929815]
[1641246432869,0.16441124,46064.0,46063.0,0.34929815]
[1641246433672,0.16441124,46064.0,46063.0,0.17429815]
[1641246433876,0.00841124,46064.0,46063.0,0.17429815]
[1641246434476,0.163,46064.0,46063.0,0.34729815]
[1641246434676,0.163,46064.0,46063.0,0.34829815]
[1641246435077,0.17141124,46064.0,46063.0,0.34829815]
[1641246435676,0.00841124,46064.0,46063.0,0.17529815]
[1641246436076,0.85794497,46067.0,46063.0,0.17529815]
[1641246436077,0.00841124,46066.0,46063.0,0.17529815]
[1641246436277,0.00841124,46064.0,46063.0,0.17429815]
[1641246436477,0.16,46064.0,46063.0,0.33503854]
[1641246436678,0.16841124,46064.0,46063.0,0.33503854]
[1641246437780,0.00841124,46064.0,46063.0,0.16303854]
[1641246438182,0.00841124,46067.0,46065.0,0.4249768]
[1641246438381,0.85794497,46068.0,46066.0,0.181]
[1641246438382,0.80035621,46068.0,46066.0,0.181]
[1641246438581,1.22532574,46070.0,46067.0,0.001]
[1641246438783,1.22532574,46070.0,46069.0,0.001]
[1641246439184,1.22532574,46070.0,46069.0,0.008438]
[1641246439986,1.22532574,46070.0,46069.0,0.14877367]
[1641246440186,0.0001,46070.0,46069.0,0.14877367]
[1641246440385,0.0001,46070.0,46069.0,0.31977367]
[1641246441690,0.0001,46070.0,46069.0,0.14877367]
[1641246442387,0.1261,46070.0,46069.0,0.31633567]
[1641246442988,0.1261,46070.0,46069.0,0.33803491]
[1641246443188,0.1261,46070.0,46069.0,0.66298591]
[1641246443588,0.0001,46070.0,46069.0,0.48798591]
[1641246444292,0.0001,46070.0,46069.0,0.46628667]
[1641246444490,0.0001,46070.0,46069.0,0.31833567]
[1641246445792,0.0001,46070.0,46069.0,0.14133567]
[1641246446394,0.1271,46070.0,46069.0,0.31433567]
[1641246447096,0.98513334,46070.0,46069.0,0.31433567]
[1641246447295,0.5510202,46070.0,46069.0,0.31433567]
[1641246447595,0.5510202,46070.0,46069.0,0.64122667]
[1641246447797,0.5510202,46070.0,46069.0,0.46822667]
[1641246448195,1.22522574,46073.0,46069.0,0.46822667]
[1641246448397,1.22522574,46073.0,46072.0,0.001]
[1641246448595,1.22522574,46073.0,46072.0,0.08612]
[1641246450397,1.22522574,46074.0,46072.0,0.26212]
[1641246450597,1.22522574,46074.0,46073.0,0.001]
[1641246451197,0.18,46076.0,46072.0,0.176]
[1641246451599,0.18,46076.0,46073.0,0.01225683]
[1641246451999,0.18,46076.0,46075.0,0.14033567]
[1641246453698,0.18727551,46076.0,46075.0,0.14033567]
[1641246454399,0.18727551,46076.0,46075.0,0.28633567]
[1641246455702,0.18727551,46076.0,46075.0,0.14033567]
[1641246456502,0.00727551,46076.0,46075.0,0.28733567]
[1641246456904,0.86427999,46076.0,46075.0,0.28733567]
[1641246457103,1.04427999,46076.0,46075.0,0.28733567]
[1641246457707,0.86427999,46076.0,46075.0,0.28733567]
[1641246457905,0.86427999,46076.0,46075.0,0.14033567]
[1641246458409,0.86427999,46076.0,46075.0,0.29133567]
[1641246459811,0.86427999,46076.0,46075.0,0.14033567]
[1641246460511,0.86427999,46076.0,46075.0,0.29633567]
[1641246461712,0.86427999,46076.0,46075.0,0.14033567]
[1641246462415,0.86427999,46076.0,46075.0,0.32233567]
[1641246462815,0.00727551,46076.0,46075.0,0.32233567]
[1641246463714,0.00727551,46076.0,46075.0,0.14033567]
[1641246464515,0.00727551,46077.0,46075.0,0.32233567]
[1641246464716,0.00727551,46076.0,46075.0,0.32233567]
[1641246465117,0.00727551,46077.0,46075.0,0.32233567]
[1641246465315,1.03700448,46078.0,46075.0,0.32233567]
[1641246465316,0.00727551,46076.0,46075.0,0.32233567]
[1641246465916,0.00727551,46077.0,46075.0,0.14033567]
[1641246466117,0.00727551,46076.0,46075.0,0.14033567]
[1641246466518,0.00727551,46077.0,46075.0,0.31533567]
[1641246466817,0.00727551,46076.0,46075.0,0.31533567]
[1641246467320,0.00727551,46077.0,46075.0,0.31533567]
[1641246467719,0.00727551,46077.0,46075.0,0.15259224]
[1641246467917,0.00727551,46076.0,46075.0,0.15259224]
[1641246468219,0.00727551,46078.0,46075.0,0.15259195]
[1641246468618,0.00727551,46076.0,46075.0,0.34059195]
[1641246468818,0.00727551,46077.0,46075.0,0.32833567]
[1641246469018,0.00727551,46076.0,46075.0,0.32833567]
[1641246469418,0.00727551,46079.0,46075.0,0.32833567]
[1641246469818,0.00727551,46076.0,46075.0,0.14033567]
[1641246470021,0.00727551,46078.0,46075.0,0.14033567]
[1641246470418,0.00737551,46080.0,46075.0,0.14033567]
[1641246470617,0.00727551,46077.0,46075.0,0.33033567]
[1641246470821,0.00727551,46079.0,46075.0,0.33033567]
[1641246471119,0.00727551,46076.0,46075.0,0.33033567]
[1641246471321,0.00727551,46078.0,46075.0,0.33033567]
[1641246471522,0.85710448,46080.0,46075.0,0.33033567]
[1641246471523,0.00727551,46076.0,46075.0,0.33033567]
[1641246471721,0.00727551,46077.0,46075.0,0.33033567]
[1641246471921,0.00727551,46077.0,46075.0,0.14033567]
[1641246472121,0.00727551,46079.0,46075.0,0.14033567]
[1641246472322,0.00727551,46076.0,46075.0,0.14033567]
[1641246472524,0.00727551,46078.0,46075.0,0.33133567]
[1641246472723,0.00727551,46076.0,46075.0,0.33133567]
[1641246472925,0.00727551,46077.0,46075.0,0.33133567]
[1641246473123,0.00727551,46076.0,46075.0,0.33133567]
[1641246473738,0.86437999,46080.0,46075.0,0.33133567]
[1641246473924,0.00727551,46076.0,46075.0,0.14033567]
[1641246474125,0.00727551,46079.0,46075.0,0.14033567]
[1641246474324,0.00727551,46076.0,46075.0,0.14033567]
[1641246474524,0.00727551,46078.0,46075.0,0.32833567]
[1641246474726,0.00727551,46076.0,46075.0,0.32833567]
[1641246475825,0.00727551,46076.0,46075.0,0.14033567]
[1641246476025,0.00727551,46078.0,46075.0,0.14033567]
[1641246476526,0.00727551,46078.0,46075.0,0.32533567]
[1641246477928,0.00727551,46078.0,46075.0,0.14033567]
[1641246478128,0.00737551,46080.0,46075.0,0.14033567]
[1641246478331,0.00727551,46077.0,46075.0,0.14033567]
[1641246478529,0.0001,46080.0,46075.0,0.14033567]
[1641246478530,0.00727551,46079.0,46075.0,0.32533567]
[1641246478729,0.00727551,46076.0,46075.0,0.32533567]
[1641246478930,0.00727551,46078.0,46075.0,0.32533567]
[1641246479130,0.00727551,46076.0,46075.0,0.32533567]
[1641246479531,0.00727551,46077.0,46075.0,0.32533567]
[1641246479730,0.00727551,46076.0,46075.0,0.14033567]
[1641246480133,0.00737551,46080.0,46075.0,0.14033567]
[1641246480335,0.00727551,46076.0,46075.0,0.14033567]
[1641246480531,0.00727551,46079.0,46075.0,0.32833567]
[1641246480831,0.00727551,46076.0,46075.0,0.32833567]
[1641246481032,0.00727551,46078.0,46075.0,0.32833567]
[1641246481243,0.00727551,46076.0,46075.0,0.32833567]
[1641246481445,0.00727551,46077.0,46075.0,0.32833567]
[1641246481743,0.00727551,46076.0,46075.0,0.14033567]
[1641246482145,0.00737551,46080.0,46075.0,0.14033567]
[1641246482347,0.00727551,46076.0,46075.0,0.14033567]
[1641246482544,0.00727551,46079.0,46075.0,0.32833567]
[1641246482743,0.00727551,46076.0,46075.0,0.32833567]
[1641246482947,0.00727551,46078.0,46075.0,0.32833567]
[1641246483345,0.0001,46080.0,46075.0,0.32833567]
[1641246483545,0.00727551,46077.0,46075.0,0.32833567]
[1641246483844,0.00737551,46080.0,46075.0,0.14033567]
[1641246484044,0.00727551,46076.0,46075.0,0.14033567]
[1641246484444,1.22567766,46076.0,46075.0,0.3385915]
[1641246484844,1.23295317,46076.0,46075.0,0.3385915]
[1641246485647,1.23295317,46076.0,46075.0,0.3395915]
[1641246485844,1.23295317,46076.0,46075.0,0.3335915]
[1641246486045,0.0001,46080.0,46075.0,0.3335915]
[1641246486245,0.02,46086.0,46079.0,0.02269334]
[1641246486444,0.02,46086.0,46081.0,0.14033567]
[1641246486646,0.02,46086.0,46085.0,0.18]
[1641246486845,0.02,46086.0,46085.0,0.24296]
[1641246487045,0.02,46086.0,46085.0,0.06296]
[1641246487252,0.02629748,46086.0,46085.0,0.25521305]
[1641246487650,0.02629748,46086.0,46085.0,0.07521305]
[1641246487846,0.02629748,46086.0,46085.0,0.07621305]
[1641246488447,0.02629748,46086.0,46085.0,0.26821305]
[1641246489750,0.02629748,46086.0,46085.0,0.07621305]
[1641246490155,0.02629748,46086.0,46085.0,0.07521305]
[1641246490353,0.02629748,46086.0,46085.0,0.01225305]
[1641246490553,0.02629748,46086.0,46085.0,0.185]
[1641246492155,0.10768748,46086.0,46085.0,0.185]
[1641246492455,0.29968748,46086.0,46076.0,0.02169668]
[1641246493055,0.00629748,46085.0,46077.0,0.01225516]
[1641246493457,0.85301957,46078.0,46077.0,0.01225516]
[1641246493657,0.85301957,46078.0,46077.0,0.01325516]
[1641246493857,0.85931705,46078.0,46077.0,0.01325516]
[1641246494458,0.85931705,46078.0,46077.0,0.20225516]
[1641246494658,0.85931705,46078.0,46077.0,2.90178475]
[1641246495862,0.00629748,46078.0,46077.0,2.71278475]
[1641246496359,0.00629748,46080.0,46077.0,2.71278475]
[1641246496560,0.00629748,46078.0,46077.0,2.99041475]
[1641246496760,0.00629748,46079.0,46077.0,2.97915959]
[1641246496960,0.00629748,46079.0,46078.0,0.001]
[1641246497161,0.00629748,46080.0,46078.0,0.001]
[1641246497363,0.00629748,46079.0,46077.0,2.97815959]
[1641246497562,0.00629748,46079.0,46078.0,0.001]
[1641246497761,0.00629748,46080.0,46078.0,0.001]
[1641246497961,0.00629748,46079.0,46078.0,0.02169488]
[1641246498162,0.00629748,46079.0,46078.0,0.02269488]
[1641246498364,0.00629748,46080.0,46078.0,0.02269488]
[1641246498563,0.00629748,46079.0,46078.0,0.21269488]
[1641246498763,0.00629748,46079.0,46078.0,0.21369488]
[1641246498963,0.00629748,46080.0,46078.0,0.21369488]
[1641246499163,0.00629748,46079.0,46078.0,0.21269488]
[1641246499367,0.00629748,46079.0,46078.0,0.21369488]
[1641246499563,0.00629748,46079.0,46078.0,0.39369488]
[1641246499763,0.00629748,46080.0,46078.0,0.21369488]
[1641246499962,0.00629748,46080.0,46078.0,0.02169488]
[1641246500466,0.00629748,46080.0,46078.0,0.21269488]
[1641246500664,0.00629748,46080.0,46078.0,0.39269488]
[1641246500867,0.00629748,46080.0,46078.0,0.40248888]
[1641246501866,0.00629748,46080.0,46078.0,0.21148888]
[1641246502466,0.00629748,46080.0,46078.0,0.40348888]
[1641246503269,0.00629748,46081.0,46078.0,0.40348888]
[1641246503569,0.00629748,46079.0,46078.0,0.40348888]
[1641246503769,0.00629748,46080.0,46078.0,0.21248888]
[1641246503968,0.00629748,46079.0,46078.0,0.21148888]
[1641246504167,0.00629748,46079.0,46078.0,0.21248888]
[1641246504367,0.00629748,46081.0,46078.0,0.21248888]
[1641246504569,0.00629748,46079.0,46078.0,0.40748888]
[1641246504769,0.00629748,46079.0,46078.0,0.40848888]
[1641246504968,0.00629748,46080.0,46078.0,0.40848888]
[1641246505168,0.00629748,46079.0,46078.0,0.40748888]
[1641246505371,0.00629748,46079.0,46078.0,0.21869488]
[1641246505571,0.00629748,46081.0,46078.0,0.21869488]
[1641246505770,0.00629748,46079.0,46078.0,0.21769488]
[1641246505969,0.00629748,46080.0,46078.0,0.02269488]
[1641246506173,0.028351,46086.0,46078.0,1.49241064]
[1641246506174,0.00629748,46079.0,46078.0,1.49241064]
[1641246506571,0.00629748,46082.0,46078.0,1.68341064]
[1641246506770,0.00629748,46079.0,46078.0,0.191]
[1641246506971,0.00629748,46081.0,46078.0,0.21269425]
[1641246507170,0.00629748,46079.0,46078.0,0.191]
[1641246507570,0.00629748,46080.0,46078.0,0.39269424]
[1641246507769,0.85301957,46082.0,46079.0,0.18]
[1641246507970,0.85301957,46082.0,46081.0,0.20169319]
[1641246508471,0.85301957,46082.0,46081.0,0.39269319]
[1641246508774,0.85301957,46083.0,46081.0,0.39269319]
[1641246509071,0.85301957,46083.0,46081.0,0.21269319]
[1641246509572,0.85301957,46083.0,46081.0,0.39269319]
[1641246509972,0.85301957,46083.0,46081.0,0.20169319]
[1641246510372,0.85301957,46084.0,46081.0,0.20169319]
[1641246510572,0.85301957,46084.0,46081.0,0.39369319]
[1641246511180,0.85301957,46084.0,46081.0,0.21369319]
[1641246511976,0.85301957,46084.0,46082.0,0.01225353]
[1641246512577,0.85301957,46084.0,46082.0,0.20225353]
[1641246512976,0.85301957,46084.0,46083.0,0.01225353]
[1641246513575,1.23978995,46086.0,46083.0,0.01225353]
[1641246513776,1.21978995,46085.0,46083.0,0.01225353]
[1641246513981,1.29768995,46085.0,46083.0,0.01225353]
[1641246514377,1.29768995,46085.0,46082.0,0.01225353]
[1641246514677,1.29768995,46085.0,46084.0,0.01225353]
[1641246514990,1.29768995,46085.0,46083.0,0.20725353]
[1641246515178,1.29768995,46085.0,46084.0,0.01225353]
[1641246515378,1.29768995,46085.0,46083.0,0.195]
[1641246515783,1.29768995,46085.0,46081.0,0.02169319]
[1641246516081,0.0779,46085.0,46084.0,0.01225336]
[1641246516381,0.0779,46085.0,46082.0,0.01225336]
[1641246516582,0.0779,46085.0,46084.0,0.01225336]
[1641246516781,1.23978995,46086.0,46083.0,0.01225336]
[1641246517080,1.23978995,46086.0,46084.0,0.01225336]
[1641246517481,1.23978995,46086.0,46082.0,0.01225336]
[1641246518485,1.23978995,46086.0,46082.0,0.19625336]
[1641246518681,1.21978995,46085.0,46082.0,0.19625336]
[1641246519084,1.21978995,46085.0,46083.0,0.01225336]
[1641246520281,1.23978995,46086.0,46083.0,0.01225336]
[1641246520483,1.23978995,46086.0,46083.0,0.191]
[1641246520683,1.23978995,46086.0,46084.0,0.01225336]
[1641246521483,0.02,46086.0,46084.0,0.01225336]
[1641246522283,0.02,46086.0,46082.0,0.01225336]
[1641246522495,1.23288111,46086.0,46084.0,0.189]
[1641246522683,0.00630128,46085.0,46084.0,0.189]
[1641246523083,1.21918239,46085.0,46084.0,0.189]
[1641246523283,1.21918239,46085.0,46084.0,0.20125369]
[1641246524386,1.21918239,46085.0,46084.0,0.01225369]
[1641246524584,1.21918239,46085.0,46084.0,0.19925369]
[1641246524985,1.48557239,46085.0,46084.0,0.187]
[1641246525184,0.008351,46084.0,46068.0,2.50415216]
[1641246525385,0.18,46081.0,46073.0,0.02169813]
[1641246526085,1.21288111,46079.0,46073.0,0.02169813]
[1641246526587,0.00783469,46078.0,46076.0,0.01225554]
[1641246528087,1.21288111,46077.0,46076.0,0.01225554]
[1641246528687,0.00783469,46077.0,46076.0,0.01225554]
[1641246530488,0.19683469,46077.0,46076.0,0.01225554]
[1641246531695,1.4097158,46077.0,46076.0,0.01225554]
[1641246531896,1.2207158,46077.0,46076.0,0.01225554]
[1641246532494,1.4127158,46077.0,46076.0,0.01225554]
[1641246533795,1.2207158,46077.0,46076.0,0.01225554]
[1641246534598,1.4057158,46077.0,46076.0,0.01225554]
[1641246535598,0.19283469,46077.0,46076.0,0.01225554]
[1641246536498,0.37983469,46077.0,46076.0,0.01225554]
[1641246537101,0.37983469,46077.0,46076.0,0.07185554]
[1641246537298,0.37983469,46077.0,46076.0,0.09455118]
[1641246537709,0.372,46077.0,46076.0,0.09455118]
[1641246537909,1.21288111,46078.0,46076.0,0.09455118]
[1641246538110,0.18,46091.0,46077.0,0.010794]
[1641246538310,0.18,46091.0,46080.0,0.18]
[1641246538712,0.00796011,46085.0,46081.0,0.01225554]
[1641246539115,0.00796011,46085.0,46082.0,0.14033567]
[1641246539312,1.20875841,46084.0,46082.0,0.14033567]
[1641246539512,1.20875841,46084.0,46083.0,0.01325554]
[1641246540313,0.34203131,46095.0,46083.0,0.01325554]
[1641246540513,0.188,46084.0,46083.0,0.17325554]
[1641246540715,0.188,46084.0,46083.0,0.162]
[1641246541316,0.188,46084.0,46083.0,0.19348751]
[1641246541916,0.0001,46090.0,46083.0,0.21248751]
[1641246542119,0.0001,46090.0,46083.0,0.21148751]
[1641246542517,0.199,46086.0,46083.0,0.38448751]
[1641246543519,0.199,46086.0,46083.0,0.20448751]
[1641246543919,0.02,46086.0,46083.0,0.03148751]
[1641246544520,0.196,46086.0,46083.0,0.19948751]
[1641246545822,0.02,46086.0,46083.0,0.03148751]
[1641246546424,0.02,46086.0,46083.0,0.21148751]
[1641246546624,0.193,46086.0,46083.0,1.84384533]
[1641246547227,0.193,46086.0,46083.0,1.66384533]
[1641246547426,0.193,46086.0,46083.0,1.84384533]
[1641246547824,0.02,46086.0,46083.0,1.68184533]
[1641246548325,0.02,46086.0,46085.0,0.001]
[1641246548625,0.0715,46086.0,46085.0,0.02269126]
[1641246548825,0.0001,46100.0,46085.0,0.02269126]
[1641246549026,0.0001,46100.0,46093.0,0.61390163]
[1641246549225,0.0001,46100.0,46097.0,0.14033567]
[1641246550427,0.0001,46100.0,46099.0,0.20268558]
[1641246550627,0.14033567,46111.0,46099.0,0.64632084]
[1641246550826,1.8163,46117.0,46109.0,0.02167923]
[1641246551029,1.60224253,46116.0,46109.0,0.09412923]
[1641246551228,1.60224253,46116.0,46109.0,0.2512389]
[1641246551435,1.60224253,46116.0,46114.0,0.001]
[1641246551628,1.62020153,46123.0,46115.0,0.03247]
[1641246551831,1.62020153,46123.0,46115.0,0.009794]
[1641246552028,1.62020153,46123.0,46119.0,0.02167412]
[1641246552229,1.62020153,46123.0,46119.0,0.10696412]
[1641246552428,1.62020153,46123.0,46119.0,0.43394012]
[1641246552630,0.14033567,46128.0,46119.0,0.62694012]
[1641246553330,0.1801,46130.0,46126.0,0.02167317]
[1641246554533,0.1801,46130.0,46126.0,0.20967317]
[1641246555031,0.00795292,46129.0,46126.0,0.20967317]
[1641246555236,0.14033567,46133.0,46128.0,0.001]
[1641246555432,0.028351,46136.0,46132.0,0.18]
[1641246555433,0.02,46136.0,46132.0,0.18]
[1641246555632,0.02,46136.0,46133.0,0.18]
[1641246556634,0.02,46136.0,46133.0,0.375]
[1641246557033,0.00695662,46135.0,46133.0,0.375]
[1641246557739,0.00695662,46135.0,46133.0,0.195]
[1641246558134,0.00695662,46135.0,46133.0,0.0001]
[1641246558335,0.008351,46134.0,46123.0,0.28067134]
[1641246558534,0.008351,46134.0,46124.0,1.47035782]
[1641246558735,0.02168095,46127.0,46117.0,1.59250795]
[1641246558935,0.10237095,46127.0,46117.0,1.59250795]
[1641246559335,0.14033567,46118.0,46117.0,1.59250795]
[1641246559634,0.14033567,46118.0,46110.0,1.917994]
[1641246559833,0.14729229,46118.0,46110.0,0.009794]
[1641246560034,0.00695662,46117.0,46111.0,0.01224616]
[1641246560239,0.00695662,46117.0,46114.0,0.18]
[1641246560635,0.84621878,46116.0,46114.0,0.18]
[1641246561037,0.00695662,46115.0,46114.0,0.18]
[1641246561336,0.00695662,46115.0,46114.0,0.181]
[1641246561938,0.00695662,46116.0,46114.0,0.181]
[1641246562136,0.00695662,46115.0,46114.0,0.18]
[1641246562335,0.00695662,46115.0,46114.0,0.181]
[1641246562536,0.00695662,46115.0,46114.0,0.369]
[1641246562740,0.14033567,46118.0,46114.0,0.369]
[1641246562741,0.00695662,46116.0,46114.0,0.369]
[1641246562938,0.00695662,46116.0,46114.0,0.368]
[1641246563138,0.00695662,46117.0,46114.0,0.368]
[1641246563338,0.00695662,46115.0,46114.0,0.368]
[1641246563539,0.00695662,46116.0,46114.0,0.368]
[1641246563738,0.00695662,46115.0,46114.0,0.368]
[1641246564039,0.00695662,46115.0,46114.0,0.18]
[1641246564240,0.00695662,46117.0,46114.0,0.18]
[1641246564437,0.00695662,46115.0,46114.0,0.18]
[1641246564639,0.00695662,46116.0,46114.0,0.369]
[1641246564838,0.00695662,46115.0,46114.0,0.369]
[1641246565439,0.14033567,46118.0,46114.0,0.369]
[1641246565440,0.00695662,46117.0,46114.0,0.369]
[1641246565640,0.00695662,46115.0,46114.0,0.369]
[1641246565939,0.00695662,46116.0,46114.0,0.18]
[1641246566139,0.00695662,46115.0,46114.0,0.18]
[1641246566338,0.00695662,46117.0,46114.0,0.18]
[1641246566540,0.00695662,46115.0,46114.0,0.367]
[1641246566741,0.00695662,46116.0,46114.0,0.367]
[1641246567141,0.00695662,46117.0,46114.0,0.367]
[1641246567341,0.00695662,46115.0,46114.0,0.187]
[1641246567540,0.14033567,46118.0,46114.0,0.187]
[1641246567541,0.00695662,46116.0,46114.0,0.187]
[1641246567742,0.00695662,46115.0,46114.0,0.187]
[1641246567940,0.00695662,46115.0,46113.0,1.46943438]
[1641246568243,0.00695662,46117.0,46113.0,1.46943438]
[1641246568542,0.00695662,46114.0,46113.0,1.66143438]
[1641246568744,0.00695662,46116.0,46113.0,1.66143438]
[1641246568944,0.00695662,46114.0,46113.0,0.192]
[1641246569146,0.00695662,46115.0,46113.0,0.192]
[1641246569346,0.00695662,46114.0,46113.0,0.192]
[1641246569745,0.00695662,46116.0,46113.0,0.192]
[1641246569945,0.00695662,46116.0,46112.0,0.18]
[1641246570146,0.84621878,46117.0,46111.0,1.59894538]
[1641246570349,0.84621878,46117.0,46115.0,0.18]
[1641246570951,0.84621878,46117.0,46112.0,0.188]
[1641246571152,0.84621878,46117.0,46112.0,0.368]
[1641246571372,0.84621878,46117.0,46112.0,0.188]
[1641246571974,0.008351,46116.0,46111.0,1.46943438]
[1641246572573,1.340351,46116.0,46111.0,1.46943438]
[1641246572975,1.51536133,46116.0,46111.0,3.438e-05]
[1641246573373,0.14033567,46112.0,46100.0,0.14033567]
[1641246573573,1.148351,46111.0,46091.0,0.18]
[1641246573774,1.148351,46111.0,46098.0,1.59250795]
[1641246574173,0.02169067,46106.0,46098.0,1.59250795]
[1641246574373,0.11173067,46106.0,46098.0,1.59250795]
[1641246574576,0.12008167,46106.0,46098.0,1.59250795]
[1641246574773,0.098391,46106.0,46098.0,1.59250795]
[1641246574975,0.12008167,46106.0,46098.0,1.59250795]
[1641246575174,0.098391,46106.0,46099.0,0.18]
[1641246575375,0.83716793,46102.0,46099.0,0.26452]
[1641246576574,1.01316793,46102.0,46099.0,0.43852]
[1641246577076,0.176,46102.0,46099.0,0.43852]
[1641246577274,0.176,46102.0,46099.0,0.25852]
[1641246577778,0.83716793,46104.0,46099.0,0.08452]
[1641246577976,0.14033567,46105.0,46098.0,0.18]
[1641246578180,0.14033567,46105.0,46091.0,0.009794]
[1641246578575,0.32433567,46105.0,46098.0,0.126]
[1641246579774,0.14033567,46105.0,46096.0,0.18]
[1641246579975,0.14033567,46105.0,46090.0,0.02168981]
[1641246579976,0.14033567,46105.0,46091.0,0.18]
[1641246580378,0.14033567,46105.0,46090.0,0.02168981]
[1641246580579,0.32333567,46105.0,46095.0,0.29433567]
[1641246581978,0.14033567,46105.0,46095.0,0.14033567]
[1641246582579,0.32133567,46105.0,46095.0,0.29433567]
[1641246583780,0.14033567,46105.0,46095.0,0.14033567]
[1641246584181,0.16202689,46105.0,46095.0,0.14033567]
[1641246584581,0.32733567,46105.0,46096.0,0.18]
[1641246585183,0.83716793,46099.0,46096.0,0.18]
[1641246585587,0.00688857,46098.0,46096.0,0.18]
[1641246586686,1.0200565,46098.0,46096.0,0.359]
[1641246587285,0.00688857,46097.0,46096.0,0.359]
[1641246587786,0.00688857,46097.0,46096.0,0.18]
[1641246587986,0.8440565,46097.0,46096.0,0.18]
[1641246588589,0.18888857,46097.0,46096.0,0.363]
[1641246589986,0.00688857,46097.0,46096.0,0.18]
[1641246590589,0.14488857,46097.0,46096.0,0.367]
[1641246590887,0.14488857,46097.0,46096.0,0.37924921]
[1641246591889,0.00688857,46097.0,46096.0,0.19224921]
[1641246592291,0.00688857,46099.0,46096.0,0.19224921]
[1641246592491,0.00688857,46097.0,46096.0,0.19224921]
[1641246592690,0.16988857,46097.0,46096.0,0.37924921]
[1641246592892,0.163,46097.0,46096.0,0.37924921]
[1641246593091,0.16988857,46097.0,46096.0,0.37924921]
[1641246593993,0.00688857,46097.0,46096.0,0.19224921]
[1641246594492,0.00688857,46104.0,46096.0,0.19324921]
[1641246594692,0.00688857,46104.0,46103.0,0.18]
[1641246594893,0.14033567,46105.0,46103.0,0.18]
[1641246595293,0.00688631,46104.0,46103.0,0.18]
[1641246595794,0.00688631,46104.0,46103.0,0.19224826]
[1641246596694,0.00688631,46104.0,46103.0,0.38124826]
[1641246597594,0.00688631,46104.0,46103.0,0.20124826]
[1641246597794,0.00688631,46104.0,46103.0,0.38124826]
[1641246597996,0.00688631,46104.0,46103.0,0.19224826]
[1641246598194,0.00688631,46104.0,46103.0,0.20204226]
[1641246598494,0.00688631,46104.0,46103.0,0.22372624]